Cogmind - Beta 13 @@@ ROGUE MODE // 2024.04.10 @ 03:15:32 Player: Naiya55 Result: Destroyed by Y-45 Defender with Beam Rifle Performance ------------- Evolutions (2) 1000 Regions Visited (3) 600 Robots Destroyed (35) 175 Value Destroyed (1151) 1151 Prototype IDs (2) 40 Alien Tech Used (0) 0 Bonus (0) 0 TOTAL SCORE: 2966 Bonus ------- None Cogmind --------- Core Integrity 0/550 Matter 270/300 Energy 100/100 System Corruption 1% Temperature Cool (27) Movement Core (50) Location -8/Materials Parts ------- > --- POWER (1) -------- (None) > --- PROPULSION (3) --- (None) > --- UTILITY (3) ------ (None) > --- WEAPON (4) ------- (None) > --- INVENTORY (5) ---- Aluminum Leg Small Storage Unit Large Storage Unit Light Armor Plating Rocket Launcher Peak State ------------ > --- POWER ------------ Light Nuclear Core > --- PROPULSION ------- Aluminum Leg Aluminum Leg Improved Aluminum Leg > --- UTILITY ---------- Large Storage Unit Advanced Weight Redist. System Advanced Visual Processing Unit > --- WEAPON ----------- Assault Rifle Light Assault Rifle Autogun Minigun > --- INVENTORY -------- Aluminum Leg Aluminum Leg Aluminum Leg Small Storage Unit Large Storage Unit Advanced Targeting Computer Light Armor Plating Light Armor Plating Ion Cannon Light Assault Rifle Heavy Assault Rifle Rocket Launcher Rocket Launcher [Rating: 23] Favorites ----------- Power Light Ion Engine Engine Light Ion Engine Power Core Light Nuclear Core Propulsion Aluminum Leg Leg Aluminum Leg Utility Small Storage Unit Device Seismic Detector Storage Small Storage Unit Processor Advanced Visual Processing Unit Weapon Assault Rifle Energy Cannon Ion Cannon Ballistic Gun Assault Rifle Ballistic Cannon Light Cannon Launcher Rocket Launcher Build | -11 -10 -9 -8 ------- Run | Yrd Mat Mat Mat Slots Evolved 4 | . . 2 2 Power . | . . . . Propulsion 1 | . . . 1 Utility 1 | . . . 1 Weapon 2 | . . 2 . Parts Attached 46 | 5 3 8 30 Power 4 | 1 . 1 2 Engine 3 | 1 . 1 1 Core 1 | . . . 1 Reactor . | . . . . Propulsion 12 | 2 . 1 9 Treads . | . . . . Leg 12 | 2 . 1 9 Wheel . | . . . . Hover . | . . . . Flight . | . . . . Utility 13 | . 3 . 10 Device 4 | . 1 . 3 Storage 8 | . 2 . 6 Processor 1 | . . . 1 Hackware . | . . . . Protection . | . . . . Artifact . | . . . . Weapon 17 | 2 . 6 9 Energy Gun . | . . . . Energy Cannon 1 | . . . 1 Ballistic Gun 10 | 2 . 2 6 Ballistic Cannon 4 | . . 3 1 Launcher 2 | . . 1 1 Special Weapon . | . . . . Impact Weapon . | . . . . Slashing Weapon . | . . . . Piercing Weapon . | . . . . Special Melee Weapon . | . . . . Unidentified Prototypes . | . . . . Corrupted Parts 1 | . . . 1 System Corruption 1 | . . . 1 Parts Lost 15 | . . 2 13 Power 3 | . . 1 2 Propulsion 4 | . . 1 3 Utility 4 | . . . 4 Weapon 4 | . . . 4 Highest Loss Streak 7 | . . 1 7 To Critical Strikes 1 | . . . 1 Average Slot Usage (%) 91 | . 92 97 86 Engine 7 | . 14 10 2 Core 2 | . . . 4 Leg 23 | . 28 21 23 Device 8 | . 4 11 7 Storage 10 | . 16 11 9 Processor 3 | . . . 7 Ballistic Gun 24 | . 28 22 27 Ballistic Cannon 10 | . . 19 3 Naked Turns 23 | . . . 23 Heaviest Build 39 | 7 13 19 39 Greatest Support 42 | 20 20 23 42 Greatest Overweight (x) 2 | . . 1 2 Average Overweight (x) . | . . . . Largest Inventory Capacity 15 | 5 8 8 15 Average Capacity 9 | 5 7 8 11 Most Carried 13 | 5 7 8 13 Average Carried 7 | 1 5 7 8 Final Capacity 8 | 5 8 8 5 Final Carried 8 | 3 7 8 5 Class Distribution -------------------- 39% | Gunner 24% | Mutant 23% | Scavenger-Skirmisher 11% | Skirmisher Dominant Class ---------------- Mutant | -10/Materials Gunner | -9/Materials Scavenger-Skirmisher | -8/Materials Resources | -11 -10 -9 -8 ----------- Run | Yrd Mat Mat Mat Matter Collected 1350 | 280 . 342 728 Remotely . | . . . . Salvage Created 1193 | 30 . 312 851 Parts 70 | 1 . 28 41 Haulers Intercepted 2 | . . 2 . Recyclers Shooed 3 | . . 2 1 Parts Field Recycled . | . . . . Retrieved Matter . | . . . . Parts Self-Destructed . | . . . . Prevented . | . . . . Kills | -11 -10 -9 -8 ------- Run | Yrd Mat Mat Mat Combat Hostiles Destroyed 29 | 1 . 13 15 Guns 18 | 1 . 5 12 Cannons 8 | . . 6 2 AOE 3 | . . 2 1 Classes Destroyed 11 | 1 . 4 6 Worker 1 | . . 1 . Builder 1 | . . . 1 Hauler 2 | . . 2 . Recycler 1 | . . . 1 Watcher 1 | . . . 1 Swarmer 7 | . . 7 . Grunt 15 | 1 . 4 10 Duelist 1 | . . . 1 Sentry 4 | . . 2 2 Specialist 1 | . . . 1 Hunter 1 | . . . 1 Best Kill Streak 5 | 1 . 4 5 Combat Bots Only 4 | 1 . 4 4 Max Kills in Single Turn 1 | 1 . 1 1 Gunslinging . | . . . . Exploded 1 | . . 1 1 Melee . | . . . . Uniques/NPCs Destroyed . | . . . . Combat | -11 -10 -9 -8 -------- Run | Yrd Mat Mat Mat Hostile Shots Fired 239 | 7 21 65 146 Missed 70 | 1 6 25 38 Damage Taken 2363 | 64 132 413 1754 Core 671 | 21 37 53 560 Absorbed by Shields . | . . . . Core Remaining (%) 84 | 91 76 86 . Volleys Fired 77 | 5 . 33 39 Largest 4 | 2 . 4 4 Hottest 110 | 40 . 110 98 Shots Fired 242 | 10 . 89 143 Gun 180 | 10 . 44 126 Cannon 55 | . . 40 15 Launcher 7 | . . 5 2 Special . | . . . . Kinetic 235 | 10 . 84 141 Thermal . | . . . . Explosive 7 | . . 5 2 Electromagnetic . | . . . . Robot Hit Streak 15 | 5 . 9 15 Robot Miss Streak 8 | 1 . 8 5 Penetration Max . | . . . . Secondary Targets . | . . . . Shots Hit Robots 148 | 8 . 43 97 Core Hits 75 | 2 . 25 48 Critical Kills . | . . . . Critical Parts Destroyed . | . . . . Critical Strikes 1 | . . . 1 Blast 1 | . . . 1 Melee Attacks . | . . . . Impact . | . . . . Slashing . | . . . . Piercing . | . . . . Sneak Attacks . | . . . . Combat Hostiles . | . . . . Follow-up Attacks . | . . . . Damage Inflicted 2697 | 124 . 1032 1541 Guns 1544 | 124 . 293 1127 Cannons 462 | . . 275 187 Explosions 686 | . . 464 222 Melee . | . . . . Ramming 5 | . . . 5 Kinetic 2006 | 124 . 568 1314 Thermal . | . . . . Explosive 605 | . . 464 141 Electromagnetic 81 | . . . 81 Impact . | . . . . Slashing . | . . . . Piercing . | . . . . Highest Corruption 1 | . . . 1 Average Corruption 1 | . . . 1 Corruption Purged . | . . . . Corruption Blocked . | . . . . Effects 1 | . . . 1 Matter Fused 1 | . . . 1 Overload Shots . | . . . . Overflow Damage . | . . . . Projectiles . | . . . . Explosions . | . . . . Melee . | . . . . Knockbacks 3 | . . 1 2 Impact . | . . . . Kinetic 3 | . . 1 2 Secondary . | . . . . Self-Inflicted Damage 36 | . . . 36 Shots 1 | . . . 1 Rammed . | . . . . Targets Rammed 1 | . . . 1 Kicked 1 | . . . 1 Crushed . | . . . . Highest Temperature 321 | . . 321 208 Average Temperature 84 | . . 108 70 Received Heat Transfer 681 | 36 . 87 558 Siege Activations . | . . . . Robots Corrupted . | . . . . Combat Hostiles . | . . . . Parts Fried . | . . . . Impact Corruptions . | . . . . Robots Melted . | . . . . Combat Hostiles . | . . . . Parts Melted . | . . . . Heat Transferred . | . . . . Parts Sabotaged . | . . . . Parts Stolen . | . . . . Parts Stripped . | . . . . Power Chain Reactions . | . . . . Alert | -11 -10 -9 -8 ------- Run | Yrd Mat Mat Mat Peak Influence 407 | 20 43 273 407 Initial 51 | . 13 17 51 Average 166 | 2 13 135 254 Maximum Alert Level 2 | . . 1 2 Low Security (%) 56 | 100 100 72 24 Level 1 41 | . . 27 70 Level 2 1 | . . . 4 Level 3 . | . . . . Level 4 . | . . . . Level 5 . | . . . . High Security . | . . . . Max Security . | . . . . Squads Dispatched 6 | . . 1 5 Investigation 2 | . . 1 1 Extermination . | . . . . Reinforcement 4 | . . . 4 Assault . | . . . . Garrison . | . . . . Intercept . | . . . . Searches Triggered . | . . . . Construction Impeded 1 | . . . 1 Haulers Reinforced . | . . . . Active Scanning Responses . | . . . . Cargo Convoy Interrupts . | . . . . Stealth | -11 -10 -9 -8 --------- Run | Yrd Mat Mat Mat Distress Signals 6 | . . 1 5 Communications Jammed . | . . . . Distress Signals . | . . . . Times Spotted 56 | 1 6 16 33 Peak Tracking Total 7 | 1 5 4 7 Tactical Retreats 6 | . 1 1 4 Traps | -11 -10 -9 -8 ------- Run | Yrd Mat Mat Mat Traps Triggered 1 | . . . 1 Indirectly . | . . . . Trap Hack Attempts . | . . . . Triggered . | . . . . Disarmed . | . . . . Reprogrammed . | . . . . Reused . | . . . . Traps Extracted . | . . . . Installed . | . . . . Triggered . | . . . . Machines | -11 -10 -9 -8 ---------- Run | Yrd Mat Mat Mat Machines Disabled 4 | . . 3 1 Max in Single Turn 2 | . . 2 1 Machines Repaired . | . . . . Machines Dismantled . | . . . . Machines Sabotaged . | . . . . Overloaded Fab Kills . | . . . . Hacking | -11 -10 -9 -8 --------- Run | Yrd Mat Mat Mat Machines Accessed 5 | . . 3 2 Terminals 3 | . . 2 1 Fabricators . | . . . . Repair Stations . | . . . . Recycling Units 1 | . . 1 . Scanalyzers 1 | . . . 1 Garrison Access . | . . . . Total Hacks 23 | . . 12 11 Successful 17 | . . 8 9 Failed 6 | . . 4 2 Catastrophic . | . . . . Database Lockouts . | . . . . Manual 2 | . . 2 . Terminals 10 | . . 4 6 Fabricators . | . . . . Repair Stations . | . . . . Recycling Units 8 | . . 8 . Scanalyzers 5 | . . . 5 Garrison Access . | . . . . Terminal Hacks 8 | . . 3 5 Record 4 | . . 2 2 Prototype ID Bank 1 | . . . 1 Alert Level 1 | . . 1 . Dispatch Records 1 | . . . 1 Zone Layout 1 | . . . 1 Fabricator Hacks . | . . . . Repair Station Hacks . | . . . . Recycling Unit Hacks 5 | . . 5 . Recycle Component 3 | . . 3 . Process 1 | . . 1 . Retrieve Matter 1 | . . 1 . Scanalyzer 4 | . . . 4 Insert Component 2 | . . . 2 Analyze 2 | . . . 2 Garrison Access Hacks . | . . . . Unauthorized Hacks . | . . . . Terminals . | . . . . Fabricators . | . . . . Repair Stations . | . . . . Recycling Units . | . . . . Scanalyzers . | . . . . Garrison Access . | . . . . Data Cores Recovered . | . . . . Used . | . . . . Hacking Detections 4 | . . 2 2 Full Trace Events 3 | . . 2 1 Feedback Events . | . . . . Feedback Blocked . | . . . . Robot Schematics Acquired . | . . . . Robots Built . | . . . . Authchips . | . . . . Time . | . . . . Total Robot Build Rating . | . . . . Part Schematics Acquired 2 | . . . 2 Parts Built . | . . . . Authchips . | . . . . Time . | . . . . Total Part Build Rating . | . . . . Parts Repaired . | . . . . Time . | . . . . Parts Recycled 3 | . . 3 . Recycled Matter 546 | . . 546 . Retrieved Matter 714 | . . 714 . Retrieved Components . | . . . . Parts Scanalyzed 2 | . . . 2 Part Schematics Acquired 2 | . . . 2 Parts Damaged . | . . . . Bothacking | -11 -10 -9 -8 ------------ Run | Yrd Mat Mat Mat Used RIF Installer . | . . . . Robots Hacked . | . . . . Non-combat . | . . . . Combat . | . . . . Robot Hacks Applied . | . . . . Relay Couplers Released . | . . . . Fabnet Peak Effective % . | . . . . Robots Rewired . | . . . . Allies Hacked . | . . . . Hacks Repelled . | . . . . Allies | -11 -10 -9 -8 -------- Run | Yrd Mat Mat Mat Total Allies . | . . . . Largest Group . | . . . . Highest-Rated Group . | . . . . Highest-Rated Ally . | . . . . Total Orders . | . . . . Ally Attacks . | . . . . Total Damage . | . . . . Kills . | . . . . Allies Corrupted . | . . . . Allies Melted . | . . . . Intel | -11 -10 -9 -8 ------- Run | Yrd Mat Mat Mat Robot Analysis Total . | . . . . Derelict Logs Recovered . | . . . . Drone Launches . | . . . . Drone Recoveries . | . . . . Exploration | -11 -10 -9 -8 ------------- Run | Yrd Mat Mat Mat Turns Passed 1854 | 101 176 811 766 Spaces Moved 1187 | 80 135 511 461 Core 72 | 30 . . 42 Treads . | . . . . Legs 1115 | 50 135 511 419 Wheels . | . . . . Hover . | . . . . Flight . | . . . . Fastest Speed 50 | 50 120 120 50 Average Speed 116 | 93 120 120 116 Slowest Speed 260 | 120 120 190 260 Overloaded Moves . | . . . . Propulsion Burnouts . | . . . . Robots Hopped . | . . . . Cave-ins Triggered . | . . . . Exploration Rate (%) 27 | 6 31 39 34 Regions Visited 3 Branch Regions . Pre-discovered Areas . | . . . . Known Exits Taken . | . . . . Unknown Exits Taken 3 | 1 1 1 . Scrap Searched . | . . . . Spaces Dug . | . . . . Terrain Destroyed 61 | . . 34 27 Melee . | . . . . Projectile . | . . . . AOE 61 | . . 34 27 Terrain Rammed . | . . . . Walls Destroyed . | . . . . Machines Disabled . | . . . . Actions | -11 -10 -9 -8 --------- Run | Yrd Mat Mat Mat Total 1514 | 95 149 652 618 Wait 128 | . 2 68 58 Move 1184 | 79 134 510 461 Hop . | . . . . Pick Up 46 | 6 8 18 14 Fast Attach 9 | 2 . 3 4 Attach 17 | 3 2 1 11 Detach 1 | . . . 1 Swap 20 | . 1 4 15 Drop 31 | . 2 15 14 Fire 77 | 5 . 33 39 Melee . | . . . . Ram . | . . . . Kick 1 | . . . 1 Crush . | . . . . Escape Stasis . | . . . . Rewire . | . . . . Trap . | . . . . Miscellaneous . | . . . . Route ------- -11/Scrapyard -10/Materials -9/Materials -8/Materials (discovered 1 exit: [*Fac]) History --------- Turn | Location | Event 2 | -11/Scrapyard | Met Revision 17 68 | -11/Scrapyard | Discovered new exit (range 8) 102 | -11/Scrapyard | Entered Materials 265 | -10/Materials | Discovered new exit (range 12) 278 | -10/Materials | Entered another Materials area 278 | -9/Materials | Evolved 2 slots: Weapon x2 301 | -9/Materials | Build established: Mutant 634 | -9/Materials | Build established: Gunner 1027 | -9/Materials | Discovered new exit (range 4) 1089 | -9/Materials | Entered another Materials area 1089 | -8/Materials | Evolved 2 slots: Propulsion x1, Utility x1 1598 | -8/Materials | Build established: Scavenger-Skirmisher 1698 | -8/Materials | Discovered new exit (range 16) 1747 | -8/Materials | Core integrity fell below 50% 1768 | -8/Materials | Lost 7 parts (1p1n1u4w) 1838 | -8/Materials | Lost 3 parts (2n1u) 1842 | -8/Materials | Core integrity fell below 20% 1855 | -8/Materials | Destroyed by Y-45 Defender with Beam Rifle Last Messages --------------- 01813_ Penetrated by Slug. 01814_ K-01 Serf cleans the Nuclear Reactor. 01821_ Penetrated by Slug. 01822_ Dropped Aluminum Leg. 01822_ Dropped Lgt. Assault Rifle. 01823_ Dropped Ion Cannon. 01823_ Dropped Lrg. Storage Unit. 01824_ Penetrated by Slug. 01824_ K-01 Serf cleans the Nuclear Reactor. 01829_ ALERT: Suspicious intruders detected, dispatching Cutter reinforcements to area. 01833_ Acquired Med. Battery. 01841_ C-17 Slicer knocked back. 01841_ Knocked back. 01841_ O-16 Technician knocked back. 01842_ Med. Battery destroyed. 01846_ Atomic Centrifuge disabled. 01849_ Critical hit (Burn: +37). [Achievement: First Step to Greatness] Map ----- +----------------------------------------------------+ | ???????# #????????????# """ #????????????????? | | ???????# #????????????# """ #????????????????? | | ???????#=#????????????#!! """ #????????????????? | | ???????"[#????????????#[[ #????????????????? | | ??######"###??????????#=]= #????????????????? | | ??# = [% #############!] #????????????????? | | ??# |=%*=% # + #????????????????? | | ?## %|*! # ### #????????????????? | | ?# !!* # [[ #?##+### #????????????????? | | ?## # [ #??????# #????????????????? | | ??# !!! # #??????# #????????????????? | | ??# !!! #? #??????# #????????????????? | | ??# !![! #?? #??????# #????????????????? | | ??# !%* "??? #??????# #????????????????? | | ??####+#+####+### ######### #????????????????? | | ?????# #????????????????? | | ?????# ########+#+#????????????????? | | ?????# [!! # #????????????????? | | ?????###+## [!! # !!#????????????????? | | ??????????# [!! [#!!!#????????????????? | | ??????????# ! #!! #????????????????? | | ??????????+ # #????????????????? | | ??????????# # "" """ # #????????????????? | | ??????????# < # "TH"""c# #????????????????? | | ??????????# # "" " " #####????????????????? | | ??????????+ ###### c@Y #????????????????????? | | ??????????#####????######## #????????????????????? | | ???????????????????????????##????????????????????? | | ?????????????????????????????????????????????????? | | ?????????????????????????????????????????????????? | | ?????????????????????????????????????????????????? | | | | | | | | | | | | | | | | | | | | | | | | | | | | | | | | | | | | | | | +----------------------------------------------------+ Best States ------------- Heat Dissipation 31 Energy Generation 14 Energy Capacity 250 Matter Stores 300 Matter Capacity 350 Sight Range 20 Terrain Scan Density 10 Additional Mass Support 9 Evasion (%) 55 Item Schematics ----------------- Aluminum Leg | -8/Materials | Scanalyzed Lrg. Storage Unit | -8/Materials | Scanalyzed Robot Schematics ------------------ None Fabricated ------------ Nothing Alien Tech Used ----------------- None Achievements -------------- Crack Shot First Step to Greatness Loot Pinata One Hack Too Far Storm Trooper Uninvited Guest Challenges ------------ None Game ------ Seed ShadeBehemothPlatform Manual? 0 Play Time 00:43:36 Cumulative 0.7 hours Start 2024.04.08 @ 21:34:37 End 2024.04.10 @ 03:15:32 Sessions 2 Manual Loads 0 Difficulty Rogue Special Mode None Game No. 1 Rogue 1 Adventurer 0 Explorer 0 Win Type - Total 0 Types 0/0/0/0/0/0/0/0/0 Lore% 0 Gallery% 2 Achievement% 2 Wizard Run 0 Options --------- Layout 1 ASCII 0 Keyboard 0 Movement Mouse Keybinds 0 Fullscreen 2 Font 24/Smallcaps Map View 50x35 Zoom Use 0% Tactical HUD 1 Map Filters NONE Filters NONE Steam 1 RUN: 56170223-5be7-49c7-89ad-c06606a3bf29